[Event "VII Lorca Open 2018"]
[Site "Lorca"]
[Date "2018.12.29"]
[Round "6"]
[White "Nasuta, Grzegorz"]
[Black "Valmana Canto, Jaime"]
[Result "0-1"]
[ECO "C12"]
[WhiteElo "2530"]
[BlackElo "2359"]
[Annotator "ChessBase"]
[PlyCount "114"]
[EventDate "2018.12.26"]
[EventType "swiss"]
[EventCountry "ESP"]
[SourceTitle "playchess.com"]
[Source "ChessBase"]
[SourceQuality "1"]
[TimeControl "5400+30"]

1. e4 {[%emt 0:00:00]} e6 {[%emt 0:05:35]} 2. d4 {[%emt 0:00:00]} d5 {[%emt 0:00:06]} 3. Nc3 {[%emt 0:00:15]} Nf6 {[%emt 0:00:09]} 4. Bg5 {[%emt 0:00:20]} Bb4 {[%emt 0:01:08]} 5. e5 {[%emt 0:00:15]} h6 {[%emt 0:00:07]} 6. Bc1 {[%emt 0:00:05]} Ne4 {[%emt 0:01:21]} 7. Qg4 {[%emt 0:00:17]} g6 {[%emt 0:00:14]} 8. a3 {[%emt 0:00:09]} Bxc3+ {[%emt 0:00:38]} 9. bxc3 {[%emt 0:00:14]} Nxc3 {[%emt 0:02:14]} 10. Bd3 {[%emt 0:00:17]} b6 {[%emt 0:13:06]} 11. a4 {[%emt 0:26:31]} Qd7 {[%emt 0:09:43]} 12. Qh4 {[%emt 0:47:04]} Ba6 {[%emt 0:11:01]} 13. Nf3 {[%emt 0:01:55]} c5 {[%emt 0:21:22]} 14. Ra3 {[%emt 0:04:16]} Ne4 {[%emt 0:01:18]} 15. O-O {[%emt 0:08:46]} Qe7 {[%emt 0:02:25]} 16. Qh3 {[%emt 0:02:34]} c4 {[%emt 0:10:05]} 17. Bxe4 {[%emt 0:02:54]} dxe4 {[%emt 0:00:06]} 18. Ng5 {[%emt 0:00:12]} Bb7 {[%emt 0:02:04]} 19. Rg3 {[%emt 0:01:49]} Na6 {[%emt 0:00:09]} 20. Ba3 {[%emt 0:00:31]} Qd7 {[%emt 0:00:06]} 21. Qh4 {[%emt 0:00:45]} O-O-O {[%emt 0:00:11]} 22. Nxe4 {[%emt 0:00:32]} Qxd4 {[%emt 0:03:43]} 23. Re3 {[%emt 0:00:18]} Kb8 {[%emt 0:04:11]} 24. Bd6+ {[%emt 0:00:57]} Rxd6 {[%emt 0:03:38]} 25. exd6 {[%emt 0:00:01]} g5 {[%emt 0:00:08]} 26. Qh5 {[%emt 0:01:17]} Bxe4 {[%emt 0:01:38]} 27. Qxf7 {[%emt 0:00:38]} Bd5 {[%emt 0:03:37]} 28. c3 {[%emt 0:00:36]} Qc5 {[%emt 0:00:40]} 29. Qf6 {[%emt 0:00:12]} Qc8 {[%emt 0:00:21]} 30. Rh3 {[%emt 0:00:48]} Nc5 {[%emt 0:01:56]} 31. Rxh6 {[%emt 0:00:01]} Rxh6 32. Qxh6 {[%emt 0:00:00]} Ne4 {[%emt 0:00:43]} 33. Qg7 {[%emt 0:00:34]} Qd8 {[%emt 0:00:48]} 34. d7 {[%emt 0:01:05]} Kc7 {[%emt 0:00:15]} 35. f4 {[%emt 0:00:50]} Qxd7 {[%emt 0:01:08]} 36. Qxd7+ {[%emt 0:00:29]} Kxd7 {[%emt 0:00:01]} 37. fxg5 {[%emt 0:00:02]} Nxg5 {[%emt 0:00:03]} 38. h4 {[%emt 0:00:33]} Ne4 {[%emt 0:00:01]} 39. h5 {[%emt 0:00:30]} Nxc3 {[%emt 0:02:34]} 40. h6 {[%emt 0:00:02]} Be4 {[%emt 0:00:01]} 41. Rf7+ {[%emt 0:00:40]} Kd6 {[%emt 0:00:22]} 42. Kf2 {[%emt 0:00:24]} Nxa4 {[%emt 0:01:06]} 43. Rxa7 {[%emt 0:00:41]} Nc5 {[%emt 0:00:45]} 44. h7 {[%emt 0:00:35]} Bxh7 {[%emt 0:00:32]} 45. Rxh7 {[%emt 0:00:02]} c3 {[%emt 0:00:26]} 46. Ke3 {[%emt 0:01:04]} b5 {[%emt 0:00:00]} 47. Rh4 {[%emt 0:00:06]} e5 {[%emt 0:01:11]} 48. Ke2 {[%emt 0:00:32]} Kd5 {[%emt 0:00:23]} 49. Kd1 {[%emt 0:00:11]} e4 {[%emt 0:00:12]} 50. g4 {[%emt 0:00:29]} b4 {[%emt 0:00:01]} 51. Rh3 {[%emt 0:01:06]} Kd4 {[%emt 0:00:16]} 52. g5 {[%emt 0:00:08]} b3 {[%emt 0:00:05]} 53. g6 {[%emt 0:00:08]} c2+ {[%emt 0:00:55]} 54. Kd2 {[%emt 0:00:13]} Nd3 {[%emt 0:00:08]} 55. Rh1 {[%emt 0:00:18]} e3+ {[%emt 0:00:17]} 56. Ke2 {[%emt 0:00:02]} Nf4+ {[%emt 0:00:14]} 57. Kf3 {[%emt 0:00:05]} Nxg6 {[%emt 0:03:03]} 0-1

[Event "VII Lorca Open 2018"]
[Site "Lorca"]
[Date "2018.12.29"]
[Round "6"]
[White "Pap, Misa"]
[Black "Grigoryan, Karen H."]
[Result "1/2-1/2"]
[ECO "C54"]
[WhiteElo "2480"]
[BlackElo "2557"]
[Annotator "ChessBase"]
[PlyCount "27"]
[EventDate "2018.12.26"]
[EventType "swiss"]
[EventCountry "ESP"]
[SourceTitle "playchess.com"]
[Source "ChessBase"]
[SourceQuality "1"]
[TimeControl "5400+30"]

1. e4 {[%emt 0:00:00]} Nc6 {[%emt 0:02:34]} 2. d4 {[%emt 0:00:00]} e5 {[%emt 0:00:37]} 3. Nf3 {[%emt 0:02:33]} exd4 {[%emt 0:00:20]} 4. Bc4 {[%emt 0:00:06]} Bc5 {[%emt 0:00:40]} 5. c3 {[%emt 0:00:09]} Nf6 {[%emt 0:02:49]} 6. cxd4 {[%emt 0:00:06]} Bb4+ {[%emt 0:00:25]} 7. Bd2 {[%emt 0:00:33]} Bxd2+ {[%emt 0:00:07]} 8. Nbxd2 {[%emt 0:00:04]} d5 {[%emt 0:00:06]} 9. exd5 {[%emt 0:00:08]} Nxd5 {[%emt 0:00:04]} 10. Qb3 {[%emt 0:00:11]} Na5 {[%emt 0:00:40]} 11. Qa4+ {[%emt 0:00:08]} Nc6 {[%emt 0:00:14]} 12. Qb3 {[%emt 0:00:05]} Na5 {[%emt 0:02:21]} 13. Qa4+ {[%emt 0:00:07]} Nc6 {[%emt 0:00:03]} 14. Qb3 {[%emt 0:00:04]} 1/2-1/2

[Event "VII Lorca Open 2018"]
[Site "Lorca"]
[Date "2018.12.29"]
[Round "6"]
[White "Franco Ocampos, Zenon"]
[Black "Martin Duque, Jesus"]
[Result "1/2-1/2"]
[ECO "E49"]
[WhiteElo "2477"]
[BlackElo "2354"]
[Annotator "ChessBase"]
[PlyCount "88"]
[EventDate "2018.12.26"]
[EventType "swiss"]
[EventCountry "ESP"]
[SourceTitle "playchess.com"]
[Source "ChessBase"]
[SourceQuality "1"]
[TimeControl "5400+30"]

1. d4 {[%emt 0:00:00]} Nf6 {[%emt 0:00:00]} 2. c4 {[%emt 0:00:00]} e6 {[%emt 0:00:00]} 3. Nc3 {[%emt 0:00:00]} Bb4 {[%emt 0:00:00]} 4. e3 {[%emt 0:00:00]} O-O {[%emt 0:00:02]} 5. Bd3 {[%emt 0:00:14]} c5 {[%emt 0:00:10]} 6. a3 {[%emt 0:00:29]} Bxc3+ {[%emt 0:00:22]} 7. bxc3 {[%emt 0:00:04]} d5 {[%emt 0:00:53]} 8. cxd5 {[%emt 0:00:48]} exd5 {[%emt 0:00:33]} 9. Ne2 {[%emt 0:00:05]} b6 {[%emt 0:01:39]} 10. O-O {[%emt 0:00:06]} Ba6 {[%emt 0:00:46]} 11. f3 {[%emt 0:00:56]} Re8 {[%emt 0:02:13]} 12. Ng3 {[%emt 0:00:40]} Bxd3 {[%emt 0:02:24]} 13. Qxd3 {[%emt 0:00:05]} Nc6 {[%emt 0:00:29]} 14. Ra2 {[%emt 0:02:34]} Qd7 {[%emt 0:01:24]} 15. Re2 {[%emt 0:01:03]} Rac8 {[%emt 0:02:50]} 16. Bb2 {[%emt 0:04:03]} Red8 {[%emt 0:27:11]} 17. Rd1 {[%emt 0:05:50]} cxd4 {[%emt 0:02:28]} 18. cxd4 {[%emt 0:00:46]} Ne7 {[%emt 0:00:31]} 19. e4 {[%emt 0:03:12]} Ng6 {[%emt 0:00:05]} 20. Qd2 {[%emt 0:02:22]} h5 {[%emt 0:00:40]} 21. e5 {[%emt 0:14:27]} h4 {[%emt 0:01:42]} 22. Nf1 {[%emt 0:00:17]} Nh5 {[%emt 0:01:22]} 23. g3 {[%emt 0:00:33]} f6 {[%emt 0:12:30]} 24. Qd3 {[%emt 0:26:29]} Nf8 {[%emt 0:11:13]} 25. f4 {[%emt 0:05:14]} f5 {[%emt 0:02:13]} 26. Qf3 {[%emt 0:02:32]} g6 {[%emt 0:01:12]} 27. Ne3 {[%emt 0:00:18]} Qf7 {[%emt 0:04:26]} 28. Rg2 {[%emt 0:02:35]} hxg3 {[%emt 0:04:22]} 29. hxg3 {[%emt 0:00:05]} Ne6 {[%emt 0:00:43]} 30. Rf1 {[%emt 0:08:57]} Kf8 {[%emt 0:02:21]} 31. g4 {[%emt 0:01:50]} Nhxf4 {[%emt 0:00:52]} 32. gxf5 {[%emt 0:00:24]} gxf5 {[%emt 0:00:15]} 33. Qg3 {[%emt 0:00:25]} Nxg2 {[%emt 0:06:13]} 34. Rxf5 {[%emt 0:00:04]} Nxe3 {[%emt 0:00:03]} 35. Rxf7+ {[%emt 0:00:04]} Kxf7 {[%emt 0:00:03]} 36. Qxe3 {[%emt 0:00:06]} Ke7 {[%emt 0:01:18]} 37. a4 {[%emt 0:03:10]} Rg8+ {[%emt 0:03:16]} 38. Kf1 {[%emt 0:00:08]} Rcf8+ {[%emt 0:00:42]} 39. Ke1 {[%emt 0:00:04]} Rf4 {[%emt 0:03:42]} 40. Qa3+ {[%emt 0:00:40]} Kf7 {[%emt 0:00:01]} 41. Qd6 {[%emt 0:00:29]} Rg1+ {[%emt 0:02:23]} 42. Ke2 {[%emt 0:00:13]} Rg2+ {[%emt 0:00:20]} 43. Ke1 {[%emt 0:00:29]} Rg1+ {[%emt 0:00:39]} 44. Ke2 {[%emt 0:00:03]} Rg2+ {[%emt 0:05:29]} 1/2-1/2

[Event "VII Lorca Open 2018"]
[Site "Lorca"]
[Date "2018.12.29"]
[Round "6"]
[White "Nayhebaver, Martin"]
[Black "Espineira Gonzalez, Diego"]
[Result "1-0"]
[ECO "C14"]
[WhiteElo "2460"]
[BlackElo "2299"]
[Annotator "ChessBase"]
[PlyCount "141"]
[EventDate "2018.12.26"]
[EventType "swiss"]
[EventCountry "ESP"]
[SourceTitle "playchess.com"]
[Source "ChessBase"]
[SourceQuality "1"]
[TimeControl "5400+30"]

1. e4 {[%emt 0:00:00]} e6 {[%emt 0:04:54]} 2. d4 {[%emt 0:00:00]} d5 {[%emt 0:00:06]} 3. Nc3 {[%emt 0:00:22]} Nf6 {[%emt 0:00:05]} 4. Bg5 {[%emt 0:00:30]} Be7 {[%emt 0:00:08]} 5. e5 {[%emt 0:00:29]} Nfd7 {[%emt 0:00:04]} 6. h4 {[%emt 0:00:09]} h6 {[%emt 0:06:41]} 7. Bxe7 {[%emt 0:00:59]} Qxe7 {[%emt 0:00:05]} 8. Qg4 {[%emt 0:01:19]} f5 {[%emt 0:00:25]} 9. Qf4 {[%emt 0:06:48]} a6 {[%emt 0:02:07]} 10. Nf3 {[%emt 0:09:52]} c5 {[%emt 0:01:47]} 11. dxc5 {[%emt 1:15:02]} Nxc5 {[%emt 0:02:36]} 12. O-O-O {[%emt 0:00:00]} Nc6 {[%emt 0:01:20]} 13. Bd3 {[%emt 0:00:00]} O-O {[%emt 0:08:04]} 14. Ne2 {[%emt 0:00:00]} Bd7 {[%emt 0:02:07]} 15. Nfd4 {[%emt 0:00:00]} Ne4 {[%emt 0:05:25]} 16. Kb1 {[%emt 0:00:00]} Be8 {[%emt 0:02:37]} 17. Rhf1 {[%emt 0:00:00]} Nc5 {[%emt 0:07:50]} 18. Qe3 {[%emt 0:00:00]} Rc8 {[%emt 0:02:45]} 19. g3 {[%emt 0:00:00]} Nxd4 {[%emt 0:04:52]} 20. Qxd4 {[%emt 0:00:00]} Qc7 {[%emt 0:01:21]} 21. Nf4 {[%emt 0:00:00]} g5 {[%emt 0:06:20]} 22. hxg5 {[%emt 0:00:00]} hxg5 {[%emt 0:00:23]} 23. Nh3 {[%emt 0:00:00]} Nxd3 {[%emt 0:00:06]} 24. cxd3 {[%emt 0:00:00]} Qc2+ {[%emt 0:00:31]} 25. Ka1 {[%emt 0:00:00]} Bh5 {[%emt 0:00:14]} 26. Rde1 {[%emt 0:00:00]} Be2 {[%emt 0:09:11]} 27. Rh1 {[%emt 0:00:00]} Qd2 {[%emt 0:00:45]} 28. Qe3 {[%emt 0:00:00]} Qxe3 {[%emt 0:00:47]} 29. fxe3 {[%emt 0:00:00]} Bxd3 {[%emt 0:02:37]} 30. Nxg5 {[%emt 0:00:00]} Rc6 {[%emt 0:00:21]} 31. Rh6 {[%emt 0:00:00]} Rfc8 {[%emt 0:01:05]} 32. b4 {[%emt 0:00:45]} Rc1+ {[%emt 0:01:15]} 33. Rxc1 {[%emt 0:00:05]} Rxc1+ {[%emt 0:00:04]} 34. Kb2 {[%emt 0:00:03]} Rc2+ {[%emt 0:00:12]} 35. Kb3 {[%emt 0:00:21]} Re2 {[%emt 0:00:47]} 36. Kc3 {[%emt 0:02:35]} Bc4 {[%emt 0:00:14]} 37. Rg6+ {[%emt 0:01:05]} Kh8 {[%emt 0:00:56]} 38. Rxe6 {[%emt 0:06:46]} Rxe3+ {[%emt 0:00:12]} 39. Kd4 {[%emt 0:00:04]} Rd3+ {[%emt 0:02:28]} 40. Kc5 {[%emt 0:00:01]} Rxg3 {[%emt 0:00:09]} 41. Rg6 {[%emt 0:00:07]} f4 {[%emt 0:06:41]} 42. e6 {[%emt 0:01:09]} Bd3 {[%emt 0:02:09]} 43. Nf7+ {[%emt 0:01:17]} Kh7 {[%emt 0:00:02]} 44. Rf6 {[%emt 0:00:08]} Re3 {[%emt 0:16:05]} 45. Rxf4 {[%emt 0:00:25]} Kg7 {[%emt 0:00:11]} 46. Kd6 {[%emt 0:01:15]} Bb5 {[%emt 0:00:56]} 47. Ne5 {[%emt 0:00:33]} Be8 {[%emt 0:01:26]} 48. e7 {[%emt 0:00:48]} Re2 {[%emt 0:00:22]} 49. a3 {[%emt 0:00:40]} Re3 {[%emt 0:00:26]} 50. Nd7 {[%emt 0:00:36]} d4 {[%emt 0:01:18]} 51. Rg4+ {[%emt 0:00:41]} Kf7 {[%emt 0:00:05]} 52. Rf4+ {[%emt 0:00:26]} Kg7 {[%emt 0:00:02]} 53. Nf6 {[%emt 0:00:23]} Bc6 {[%emt 0:00:38]} 54. Ng4 {[%emt 0:00:41]} Re2 {[%emt 0:01:31]} 55. Rxd4 {[%emt 0:00:22]} Be8 {[%emt 0:00:31]} 56. Ne5 {[%emt 0:00:14]} Ba4 {[%emt 0:00:58]} 57. Rg4+ {[%emt 0:00:25]} Kf6 {[%emt 0:00:14]} 58. Rf4+ {[%emt 0:00:11]} Kg5 {[%emt 0:00:53]} 59. Rf8 {[%emt 0:00:26]} Re3 {[%emt 0:00:29]} 60. e8=Q {[%emt 0:01:25]} Bxe8 {[%emt 0:00:02]} 61. Rxe8 {[%emt 0:00:01]} Rxa3 {[%emt 0:00:11]} 62. Nc4 {[%emt 0:00:38]} Rb3 {[%emt 0:00:22]} 63. Kc5 {[%emt 0:00:46]} Rc3 {[%emt 0:00:05]} 64. Re3 {[%emt 0:00:28]} Rc1 {[%emt 0:00:49]} 65. Kd4 {[%emt 0:00:29]} Rb1 {[%emt 0:00:40]} 66. Kc3 {[%emt 0:00:03]} Rc1+ {[%emt 0:00:03]} 67. Kb3 {[%emt 0:00:08]} Rb1+ {[%emt 0:00:09]} 68. Nb2 {[%emt 0:00:12]} Ra1 {[%emt 0:00:27]} 69. Nd3 {[%emt 0:00:37]} a5 {[%emt 0:01:29]} 70. Re5+ {[%emt 0:00:06]} Kf6 {[%emt 0:00:09]} 71. Rxa5 {[%emt 0:00:16]} 1-0

[Event "VII Lorca Open 2018"]
[Site "Lorca"]
[Date "2018.12.29"]
[Round "6"]
[White "Gomez Ledo, Roberto Carlos"]
[Black "Kovacevic, Slobodan"]
[Result "1-0"]
[ECO "A47"]
[WhiteElo "2448"]
[BlackElo "2245"]
[Annotator "NA"]
[PlyCount "71"]
[EventDate "2018.12.26"]
[EventType "swiss"]
[EventCountry "ESP"]
[SourceTitle "playchess.com"]
[Source "ChessBase"]
[SourceQuality "1"]
[TimeControl "5400+30"]

1. d4 {[%emt 0:00:00]} Nf6 {[%emt 0:05:16]} 2. Nf3 {[%emt 0:00:00]} e6 {[%emt 0:01:17]} 3. c3 {[%emt 0:04:47]} c5 {[%emt 0:00:42]} 4. e3 {[%emt 0:01:10]} b6 {[%emt 0:00:24]} 5. Nbd2 {[%emt 0:01:10]} Bb7 {[%emt 0:01:09]} 6. Bd3 {[%emt 0:01:01]} Be7 {[%emt 0:01:24]} 7. Qe2 {[%emt 0:03:20] A47: 1 d4 Nf6 2 Nf3 b6: Torre, London and Colle Systems} (7. O-O cxd4 8. exd4 O-O 9. Qe2 d6 10. Re1 (10. Ng5 h6 11. Nge4 Nbd7 12. f4 Re8 13. Nxf6+ Nxf6 14. Ne4 Qc7 15. Bd2 a6 16. Rae1 b5 17. Rf3 Bd5 {1-0 (49) Bogdan,D (2441)-Picard,R (2338) Guingamp 2006}) 10... Nbd7 11. c4 Re8 12. b3 e5 13. Bb2 Bf8 14. Bc2 e4 15. Nh4 d5 16. Nf5 Nb8 17. f3 g6 18. Ne3 exf3 19. Qxf3 {0-1 (40) Andriasian,Z (2508)-Lputian,S (2634) Yerevan 2007}) 7... cxd4 {[%emt 0:02:15]} 8. cxd4 $146 {[%emt 0:09:06]} Qc8 {[%emt 0:08:51]} 9. e4 {[%emt 0:20:00]} Ba6 {[%emt 0:00:55]} 10. O-O {[%emt 0:05:02]} Bxd3 {[%emt 0:03:19]} 11. Qxd3 {[%emt 0:00:06]} Qa6 {[%emt 0:00:28]} 12. Qe3 {[%emt 0:04:04]} Nc6 {[%emt 0:01:54]} 13. d5 {[%emt 0:07:48]} Nb4 {[%emt 0:00:45]} 14. d6 {[%emt 0:04:05]} (14. Qb3 $11 {keeps the balance.} Bc5 15. dxe6 fxe6 16. e5) 14... Bxd6 {[%emt 0:06:49]} 15. Qg5 {[%emt 0:03:33]} Bf8 {[%emt 0:02:07]} 16. e5 {[%emt 0:00:47]} h6 {[%emt 0:02:59]} 17. Qh4 {[%emt 0:02:06]} Nfd5 {[%emt 0:05:31]} 18. Ne4 {[%emt 0:00:36]} Be7 {[%emt 0:09:07]} 19. Qg3 $17 {[%emt 0:11:16]} (19. Bg5 $15 Bc5 20. a3) 19... Kf8 {[%emt 0:04:14]} 20. Bd2 {[%emt 0:01:52]} Qd3 {[%emt 0:02:25]} 21. Nd6 {[%emt 0:02:15]} Qg6 {[%emt 0:00:53]} 22. Qh3 {[%emt 0:05:16]} Nd3 {[%emt 0:08:48]} 23. Nh4 {[%emt 0:00:04]} Bxh4 {[%emt 0:03:29]} 24. Qxh4 {[%emt 0:00:08]} Nxe5 {[%emt 0:00:15]} 25. f4 {[%emt 0:00:11]} Qg4 {[%emt 0:01:03]} 26. Qf2 {[%emt 0:00:13]} Nc6 {[%emt 0:09:04]} 27. h3 {[%emt 0:00:57]} Qh5 {[%emt 0:03:30]} 28. f5 {[%emt 0:00:15]} exf5 {[%emt 0:02:18]} 29. Nxf5 {[%emt 0:02:03]} Kg8 {[%emt 0:00:42]} 30. Rad1 {[%emt 0:01:09]} Nf6 {[%emt 0:02:38]} 31. Nxg7 {[%emt 0:00:52]} Kxg7 {[%emt 0:00:01]} 32. Qxf6+ {[%emt 0:00:09]} Kh7 {[%emt 0:01:17]} 33. Bc3 {[%emt 0:00:35]} Rhg8 {[%emt 0:01:32]} 34. Rxd7 {[%emt 0:01:45]} Rxg2+ {[%emt 0:00:53]} 35. Kxg2 {[%emt 0:00:20]} Rg8+ {[%emt 0:00:05]} 36. Kh2 {[%emt 0:00:25]} 1-0

[Event "VII Lorca Open 2018"]
[Site "Lorca"]
[Date "2018.12.29"]
[Round "6"]
[White "Morozov, Nichita"]
[Black "Terbe, Julianna"]
[Result "1/2-1/2"]
[ECO "D45"]
[WhiteElo "2439"]
[BlackElo "2272"]
[Annotator "NA"]
[PlyCount "33"]
[EventDate "2018.12.26"]
[EventType "swiss"]
[EventCountry "ESP"]
[SourceTitle "playchess.com"]
[Source "ChessBase"]
[SourceQuality "1"]
[TimeControl "5400+30"]

1. Nf3 {[%emt 0:00:00]} d5 {[%emt 0:00:00]} 2. c4 {[%emt 0:00:00]} c6 {[%emt 0:00:20]} 3. e3 {[%emt 0:00:00]} Nf6 {[%emt 0:00:04]} 4. Nc3 {[%emt 0:00:00]} a6 {[%emt 0:00:04]} 5. d4 {[%emt 0:00:00]} e6 {[%emt 0:00:05]} 6. b3 {[%emt 0:01:10]} Bb4 {[%emt 0:00:13]} 7. Bd2 {[%emt 0:00:03]} Nbd7 {[%emt 0:00:10]} 8. Bd3 {[%emt 0:00:09]} O-O {[%emt 0:00:06]} 9. O-O {[%emt 0:00:07]} Qe7 {[%emt 0:00:05]} 10. Qc2 {[%emt 0:00:40]} e5 {[%emt 0:01:32]} 11. dxe5 {[%emt 0:00:42]} Nxe5 {[%emt 0:00:08]} 12. Nxe5 {[%emt 0:00:06]} Qxe5 {[%emt 0:00:04]} 13. Ne2 {[%emt 0:01:38]} Bd6 {[%emt 0:00:30]} 14. Ng3 {[%emt 0:00:30]} Qg5 {[%emt 0:00:30]} 15. Bc3 {[%emt 0:15:42]} Ng4 {[%emt 0:16:44]} 16. Be2 {[%emt 0:01:07]} h5 {[%emt 0:08:50]} 17. Bxg4 {[%emt 0:02:55]} 1/2-1/2

[Event "VII Lorca Open 2018"]
[Site "Lorca"]
[Date "2018.12.29"]
[Round "6"]
[White "Solozhenkin, Evgeniy"]
[Black "Ajay Karthikeyan"]
[Result "1-0"]
[ECO "E63"]
[WhiteElo "2427"]
[BlackElo "2143"]
[Annotator "NA"]
[PlyCount "81"]
[EventDate "2018.12.26"]
[EventType "swiss"]
[EventCountry "ESP"]
[SourceTitle "playchess.com"]
[Source "ChessBase"]
[SourceQuality "1"]
[TimeControl "5400+30"]

1. d4 {[%emt 1:30:30]} Nf6 {[%emt 0:06:19]} 2. c4 {[%emt 0:00:00]} g6 {[%emt 0:00:01]} 3. g3 {[%emt 0:00:00]} Bg7 {[%emt 0:00:20]} 4. Bg2 {[%emt 0:00:00]} O-O {[%emt 0:00:13]} 5. Nc3 {[%emt 0:00:00]} d6 {[%emt 0:00:04]} 6. Nf3 {[%emt 0:00:00]} Nc6 {[%emt 0:00:03]} 7. O-O {[%emt 0:00:00]} a6 {[%emt 0:00:03]} 8. Qc2 {[%emt 0:00:00]} Bf5 {[%emt 0:11:55] E63: King's Indian: Fianchetto: Panno Variation with 7...a6} 9. e4 {[%emt 0:00:00]} Bg4 {[%emt 0:00:14]} 10. Be3 {[%emt 0:00:00]} Nd7 {[%emt 0:03:47]} 11. Ne2 {[%emt 0:00:00]} e5 {[%emt 0:05:12]} 12. d5 {[%emt 0:00:00]} Ne7 {[%emt 0:04:48]} 13. Ne1 {[%emt 0:00:00]} Bxe2 {[%emt 0:00:10]} 14. Qxe2 {[%emt 0:00:00]} f5 {[%emt 0:05:41]} 15. f3 {[%emt 0:00:00]} c5 $146 {[%emt 0:05:25]} ({Predecessor:} 15... a5 16. Nd3 {1-0 (57) Koneru,H (2589)-Wang,J (2364) Batumi 2012}) 16. dxc6 {[%emt 0:00:00]} Nxc6 {[%emt 0:00:40]} 17. exf5 {[%emt 0:00:00]} gxf5 {[%emt 0:01:27]} 18. f4 {[%emt 0:00:00]} e4 {[%emt 0:03:47]} 19. Rd1 {[%emt 0:00:00]} Qf6 {[%emt 0:10:33]} 20. b3 {[%emt 0:00:00]} Nc5 {[%emt 0:01:43]} 21. Qd2 {[%emt 0:00:00]} Rad8 {[%emt 0:00:25]} 22. b4 {[%emt 0:00:00]} Na4 $15 {[%emt 0:06:21]} 23. b5 {[%emt 0:00:00]} axb5 {[%emt 0:00:47]} 24. cxb5 {[%emt 0:00:00]} Ne7 {[%emt 0:04:24]} 25. Nc2 {[%emt 0:00:00]} Nb2 {[%emt 0:07:15]} 26. Bd4 {[%emt 0:00:00]} Qf7 {[%emt 0:00:23]} 27. Bxg7 {[%emt 0:00:00]} Qxg7 {[%emt 0:00:17]} 28. Rb1 {[%emt 0:00:00]} Nd3 {[%emt 0:00:57]} 29. Rfd1 {[%emt 0:00:00]} Nd5 {[%emt 0:03:12]} 30. Rb3 {[%emt 0:00:00]} Rc8 {[%emt 0:00:39]} 31. Rxd3 {[%emt 0:00:00]} Nc3 {[%emt 0:03:12]} 32. Rxd6 {[%emt 0:00:00]} Nxd1 {[%emt 0:00:22]} 33. Qxd1 {[%emt 0:00:00]} Qc3 {[%emt 0:01:18]} 34. Qd5+ {[%emt 0:00:00]} Kh8 {[%emt 0:00:12]} 35. Qd4+ {[%emt 0:00:00]} Qxd4+ {[%emt 0:00:32]} 36. Nxd4 {[%emt 0:00:00]} Rc1+ {[%emt 0:05:28]} 37. Bf1 {[%emt 0:00:00]} Re8 {[%emt 0:00:55]} 38. Kg2 {[%emt 0:00:00]} e3 {[%emt 0:00:27]} 39. Be2 {[%emt 0:00:00]} Ra1 {[%emt 0:02:38]} 40. Nxf5 {[%emt 0:01:05]} Rxa2 {[%emt 0:07:51]} 41. Kf3 {[%emt 0:00:09]} 1-0

[Event "VII Lorca Open 2018"]
[Site "Lorca"]
[Date "2018.12.29"]
[Round "6"]
[White "Suarez Uriel, Adrian"]
[Black "Romero Romero, Sebastian"]
[Result "1-0"]
[ECO "B08"]
[WhiteElo "2386"]
[BlackElo "2180"]
[Annotator "NA"]
[PlyCount "32"]
[EventDate "2018.12.26"]
[EventType "swiss"]
[EventCountry "ESP"]
[SourceTitle "playchess.com"]
[Source "ChessBase"]
[SourceQuality "1"]
[TimeControl "5400+30"]

1. e4 {[%emt 0:00:00]} Nc6 {[%emt 0:00:00]} 2. Nf3 {[%emt 0:00:00]} d6 {[%emt 0:00:00]} 3. d4 {[%emt 0:00:17]} Nf6 {[%emt 0:00:00]} 4. Nc3 {[%emt 0:00:03]} g6 {[%emt 0:00:00]} 5. h3 {[%emt 0:00:23]} Bg7 {[%emt 0:00:07]} 6. Be3 {[%emt 0:00:06]} O-O {[%emt 0:00:28]} 7. g4 {[%emt 0:01:45]} a6 {[%emt 0:10:24]} 8. Bg2 {[%emt 0:00:30]} e5 {[%emt 0:00:30]} 9. O-O {[%emt 0:00:30]} Re8 {[%emt 0:00:30]} 10. a4 {[%emt 0:00:30]} Bd7 {[%emt 0:00:30]} 11. Qd2 {[%emt 0:00:30]} exd4 {[%emt 0:00:30]} 12. Nxd4 {[%emt 0:00:30]} Nxd4 {[%emt 0:00:30]} 13. Bxd4 {[%emt 0:00:30]} Bc6 {[%emt 0:00:30]} 14. Rae1 {[%emt 0:00:30]} Qd7 {[%emt 0:00:30]} 15. f4 {[%emt 0:00:30]} b5 {[%emt 0:00:30]} 16. f5 {[%emt 0:00:30]} b4 {[%emt 0:00:30]} 1-0